[Event "Titled Tuesday Blitz October 11 Late 2022"]
[White "Kaganskiy, Gleb"]
[Black "Burke, Paul"]
[WhiteFideId "4132025"]
[BlackFideId "2605767"]
[WhiteElo "2165"]
[BlackElo "1893"]
[Result "1-0"]
[Round "06"]
[TimeControl "180+1"]
[Date "2022.10.12"]
[WhiteClock "0:00:34"]
[BlackClock "0:00:52"]

1. e4 {[%clk 0:03:00]}  e5 {[%clk 0:02:59]} 2. Nf3 {[%clk 0:03:00]}  Nc6 {[%clk 0:02:59]} 3. d4 {[%clk 0:02:55]}  exd4 {[%clk 0:02:58]} 4. Bc4 {[%clk 0:02:56]}  Be7 {[%clk 0:02:57]} 5. c3 {[%clk 0:02:55]}  d6 {[%clk 0:02:57]} 6. cxd4 {[%clk 0:02:54]}  Nf6 {[%clk 0:02:57]} 7. Nc3 {[%clk 0:02:54]}  Bg4 {[%clk 0:02:56]} 8. Be3 {[%clk 0:02:52]}  O-O {[%clk 0:02:52]} 9. h3 {[%clk 0:02:47]}  Bh5 {[%clk 0:02:50]} 10. Be2 {[%clk 0:02:45]}  d5 {[%clk 0:02:46]} 11. e5 {[%clk 0:02:45]}  Ne4 {[%clk 0:02:46]} 12. O-O {[%clk 0:02:38]}  f5 {[%clk 0:02:32]} 13. Rc1 {[%clk 0:02:30]}  f4 {[%clk 0:02:31]} 14. Bd2 {[%clk 0:02:15]}  Nxd2 {[%clk 0:02:26]} 15. Qxd2 {[%clk 0:02:12]}  Bb4 {[%clk 0:02:21]} 16. a3 {[%clk 0:02:02]}  Bxc3 {[%clk 0:02:20]} 17. Qxc3 {[%clk 0:01:57]}  Qe7 {[%clk 0:02:15]} 18. b4 {[%clk 0:01:54]}  a6 {[%clk 0:02:14]} 19. a4 {[%clk 0:01:34]}  Rac8 {[%clk 0:01:49]} 20. b5 {[%clk 0:01:32]}  axb5 {[%clk 0:01:48]} 21. axb5 {[%clk 0:01:30]}  Nd8 {[%clk 0:01:42]} 22. Qc5 {[%clk 0:01:15]}  Qxc5 {[%clk 0:01:34]} 23. Rxc5 {[%clk 0:01:16]}  c6 {[%clk 0:01:33]} 24. bxc6 {[%clk 0:01:13]}  bxc6 {[%clk 0:01:33]} 25. Rfc1 {[%clk 0:01:11]}  Be8 {[%clk 0:01:21]} 26. Rxd5 {[%clk 0:01:07]}  Bf7 {[%clk 0:01:09]} 27. Rd6 {[%clk 0:01:03]}  Ne6 {[%clk 0:01:03]} 28. Rdxc6 {[%clk 0:00:46]}  Rxc6 {[%clk 0:00:58]} 29. Rxc6 {[%clk 0:00:45]}  Rb8 {[%clk 0:00:56]} 30. Bc4 {[%clk 0:00:43]}  Nd8 {[%clk 0:00:53]} 31. Bxf7+ {[%clk 0:00:38]}  Nxf7 {[%clk 0:00:52]} 32. e6 {[%clk 0:00:34]} 1-0


[Site "https://www.chess.com"]

[Event "Titled Tuesday Blitz October 11 Late 2022"]
[White "Kavutskiy, Konstantin"]
[Black "Alexikov, Alexander"]
[WhiteFideId "2026384"]
[BlackFideId "14103958"]
[WhiteElo "2338"]
[BlackElo "2222"]
[Result "0-1"]
[Round "06"]
[TimeControl "180+1"]
[Date "2022.10.12"]
[WhiteClock "0:00:51"]
[BlackClock "0:01:19"]

1. d4 {[%clk 0:03:00]}  Nf6 {[%clk 0:02:58]} 2. c4 {[%clk 0:03:01]}  g6 {[%clk 0:02:58]} 3. Nc3 {[%clk 0:03:01]}  Bg7 {[%clk 0:02:59]} 4. e4 {[%clk 0:03:01]}  d6 {[%clk 0:03:00]} 5. h3 {[%clk 0:03:02]}  O-O {[%clk 0:02:59]} 6. Be3 {[%clk 0:03:02]}  c6 {[%clk 0:02:59]} 7. Nf3 {[%clk 0:03:02]}  a6 {[%clk 0:02:59]} 8. Bd3 {[%clk 0:03:02]}  b5 {[%clk 0:02:59]} 9. a3 {[%clk 0:03:01]}  Nbd7 {[%clk 0:02:53]} 10. O-O {[%clk 0:03:01]}  Bb7 {[%clk 0:02:52]} 11. Re1 {[%clk 0:02:54]}  e5 {[%clk 0:02:51]} 12. Qd2 {[%clk 0:02:31]}  Re8 {[%clk 0:02:47]} 13. Rad1 {[%clk 0:02:28]}  Qe7 {[%clk 0:02:45]} 14. d5 {[%clk 0:02:28]}  cxd5 {[%clk 0:02:44]} 15. cxd5 {[%clk 0:02:28]}  Rec8 {[%clk 0:02:42]} 16. Rc1 {[%clk 0:02:28]}  Nc5 {[%clk 0:02:32]} 17. Bc2 {[%clk 0:02:26]}  Rc7 {[%clk 0:02:29]} 18. b4 {[%clk 0:02:26]}  Ncd7 {[%clk 0:02:28]} 19. Bd3 {[%clk 0:02:19]}  Rac8 {[%clk 0:02:26]} 20. Qb2 {[%clk 0:02:17]}  Qd8 {[%clk 0:02:24]} 21. Nd2 {[%clk 0:02:16]}  Nh5 {[%clk 0:02:16]} 22. Nb3 {[%clk 0:02:15]}  Nf4 {[%clk 0:02:14]} 23. Bf1 {[%clk 0:02:15]}  f5 {[%clk 0:02:08]} 24. Bxf4 {[%clk 0:01:56]}  exf4 {[%clk 0:02:06]} 25. exf5 {[%clk 0:01:56]}  Bxc3 {[%clk 0:02:00]} 26. Rxc3 {[%clk 0:01:56]}  Rxc3 {[%clk 0:02:00]} 27. fxg6 {[%clk 0:01:54]}  hxg6 {[%clk 0:01:55]} 28. Re6 {[%clk 0:01:35]}  Ne5 {[%clk 0:01:53]} 29. Qb1 {[%clk 0:01:06]}  Kg7 {[%clk 0:01:32]} 30. Nd4 {[%clk 0:00:59]}  Bxd5 {[%clk 0:01:30]} 31. Qe1 {[%clk 0:00:55]}  Qg5 {[%clk 0:01:25]} 32. Kh1 {[%clk 0:00:51]}  Rc1 {[%clk 0:01:21]} 33. Qe2 {[%clk 0:00:51]}  Qxg2# {[%clk 0:01:19]} 0-1


[Site "https://www.chess.com"]

[Event "Titled Tuesday Blitz October 11 Late 2022"]
[White "Kobla, Vishal"]
[Black "Besedes, Danilo"]
[WhiteFideId "2078457"]
[BlackFideId "946796"]
[WhiteElo "1972"]
[BlackElo "2352"]
[Result "0-1"]
[Round "06"]
[TimeControl "180+1"]
[Date "2022.10.12"]
[WhiteClock "0:00:07"]
[BlackClock "0:00:23"]

1. e4 {[%clk 0:03:00]}  e6 {[%clk 0:03:00]} 2. d4 {[%clk 0:02:59]}  d5 {[%clk 0:02:59]} 3. Nd2 {[%clk 0:03:00]}  dxe4 {[%clk 0:02:58]} 4. Nxe4 {[%clk 0:02:57]}  Bd7 {[%clk 0:02:59]} 5. Nf3 {[%clk 0:02:44]}  Bc6 {[%clk 0:02:59]} 6. Bd3 {[%clk 0:02:44]}  Nd7 {[%clk 0:02:57]} 7. Qe2 {[%clk 0:02:42]}  Ngf6 {[%clk 0:02:58]} 8. c3 {[%clk 0:02:14]}  Bxe4 {[%clk 0:02:54]} 9. Bxe4 {[%clk 0:02:15]}  c6 {[%clk 0:02:51]} 10. O-O {[%clk 0:02:08]}  Bd6 {[%clk 0:02:49]} 11. Bc2 {[%clk 0:02:05]}  Qc7 {[%clk 0:02:49]} 12. Re1 {[%clk 0:02:04]}  Bf4 {[%clk 0:02:47]} 13. Bxf4 {[%clk 0:02:01]}  Qxf4 {[%clk 0:02:46]} 14. Ne5 {[%clk 0:01:57]}  Nxe5 {[%clk 0:02:44]} 15. Qxe5 {[%clk 0:01:54]}  Qxe5 {[%clk 0:02:44]} 16. Rxe5 {[%clk 0:01:54]}  Ke7 {[%clk 0:02:42]} 17. a4 {[%clk 0:01:53]}  Rhd8 {[%clk 0:02:41]} 18. a5 {[%clk 0:01:53]}  Rd5 {[%clk 0:02:41]} 19. Rae1 {[%clk 0:01:53]}  Rad8 {[%clk 0:02:39]} 20. Bb3 {[%clk 0:01:52]}  Rxe5 {[%clk 0:02:38]} 21. Rxe5 {[%clk 0:01:53]}  g6 {[%clk 0:02:24]} 22. h3 {[%clk 0:01:49]}  h5 {[%clk 0:02:24]} 23. f4 {[%clk 0:01:49]}  Kd6 {[%clk 0:02:09]} 24. Kf2 {[%clk 0:01:41]}  Nd7 {[%clk 0:02:03]} 25. Re2 {[%clk 0:01:38]}  c5 {[%clk 0:01:56]} 26. Rd2 {[%clk 0:01:36]}  Ke7 {[%clk 0:01:47]} 27. Ke3 {[%clk 0:01:25]}  cxd4+ {[%clk 0:01:28]} 28. Rxd4 {[%clk 0:01:26]}  Rc8 {[%clk 0:01:27]} 29. Rb4 {[%clk 0:00:54]}  Rc7 {[%clk 0:01:27]} 30. Bc2 {[%clk 0:00:54]}  Nf6 {[%clk 0:01:22]} 31. Be4 {[%clk 0:00:51]}  Nxe4 {[%clk 0:00:54]} 32. Kxe4 {[%clk 0:00:52]}  Kf6 {[%clk 0:00:52]} 33. g4 {[%clk 0:00:47]}  hxg4 {[%clk 0:00:41]} 34. hxg4 {[%clk 0:00:48]}  Rd7 {[%clk 0:00:40]} 35. Rb5 {[%clk 0:00:40]}  Ke7 {[%clk 0:00:37]} 36. Ke5 {[%clk 0:00:37]}  f6+ {[%clk 0:00:35]} 37. Ke4 {[%clk 0:00:37]}  Kd6 {[%clk 0:00:35]} 38. f5 {[%clk 0:00:28]}  exf5+ {[%clk 0:00:34]} 39. gxf5 {[%clk 0:00:29]}  g5 {[%clk 0:00:28]} 40. Rd5+ {[%clk 0:00:17]}  Kc6 {[%clk 0:00:28]} 41. c4 {[%clk 0:00:08]}  Rxd5 {[%clk 0:00:25]} 42. cxd5+ {[%clk 0:00:09]}  Kc5 {[%clk 0:00:23]} 43. b4+ {[%clk 0:00:08]}  Kd6 {[%clk 0:00:23]} 44. b5 {[%clk 0:00:08]}  b6 {[%clk 0:00:22]} 45. axb6 {[%clk 0:00:08]}  axb6 {[%clk 0:00:22]} 46. Kd4 {[%clk 0:00:08]}  g4 {[%clk 0:00:21]} 47. Ke4 {[%clk 0:00:09]}  Kc5 {[%clk 0:00:21]} 48. Kf4 {[%clk 0:00:06]}  Kxd5 {[%clk 0:00:21]} 49. Kxg4 {[%clk 0:00:07]}  Ke4 {[%clk 0:00:22]} 50. Kg3 {[%clk 0:00:04]}  Kxf5 {[%clk 0:00:22]} 51. Kf3 {[%clk 0:00:04]}  Ke5 {[%clk 0:00:23]} 52. Kg4 {[%clk 0:00:05]}  Ke4 {[%clk 0:00:23]} 53. Kg3 {[%clk 0:00:05]}  f5 {[%clk 0:00:22]} 54. Kf2 {[%clk 0:00:05]}  Kf4 {[%clk 0:00:22]} 55. Ke2 {[%clk 0:00:06]}  Kg3 {[%clk 0:00:22]} 56. Ke3 {[%clk 0:00:06]}  f4+ {[%clk 0:00:22]} 57. Ke2 {[%clk 0:00:07]}  Kg2 {[%clk 0:00:23]} 0-1


[Site "https://www.chess.com"]

[Event "Titled Tuesday Blitz October 11 Late 2022"]
[White "Korchmar, Vasiliy"]
[Black "Milosevic, Milos"]
[WhiteFideId "24131750"]
[BlackFideId "964875"]
[WhiteElo "2370"]
[BlackElo "2321"]
[Result "1-0"]
[Round "06"]
[TimeControl "180+1"]
[Date "2022.10.12"]
[WhiteClock "0:01:37"]
[BlackClock "0:01:10"]

1. e4 {[%clk 0:03:00]}  e5 {[%clk 0:02:53]} 2. Nf3 {[%clk 0:03:00]}  Nc6 {[%clk 0:02:53]} 3. Bc4 {[%clk 0:03:00]}  Bc5 {[%clk 0:02:52]} 4. c3 {[%clk 0:03:00]}  Nf6 {[%clk 0:02:53]} 5. d3 {[%clk 0:03:00]}  d6 {[%clk 0:02:53]} 6. Bg5 {[%clk 0:02:56]}  h6 {[%clk 0:02:48]} 7. Bh4 {[%clk 0:02:56]}  a6 {[%clk 0:02:48]} 8. Nbd2 {[%clk 0:02:54]}  Ba7 {[%clk 0:02:47]} 9. a4 {[%clk 0:02:54]}  g5 {[%clk 0:02:41]} 10. Bg3 {[%clk 0:02:53]}  Qe7 {[%clk 0:02:38]} 11. b4 {[%clk 0:02:51]}  Be6 {[%clk 0:02:36]} 12. Qc2 {[%clk 0:02:45]}  h5 {[%clk 0:02:31]} 13. h3 {[%clk 0:02:29]}  h4 {[%clk 0:02:15]} 14. Bh2 {[%clk 0:02:29]}  Nh5 {[%clk 0:02:16]} 15. b5 {[%clk 0:02:13]}  Nd8 {[%clk 0:02:10]} 16. bxa6 {[%clk 0:02:08]}  bxa6 {[%clk 0:02:05]} 17. d4 {[%clk 0:01:57]}  Bxc4 {[%clk 0:01:58]} 18. Nxc4 {[%clk 0:01:57]}  f6 {[%clk 0:01:58]} 19. Ne3 {[%clk 0:01:53]}  Ng7 {[%clk 0:01:56]} 20. Nd5 {[%clk 0:01:35]}  Qf7 {[%clk 0:01:54]} 21. dxe5 {[%clk 0:01:36]}  dxe5 {[%clk 0:01:52]} 22. Bxe5 {[%clk 0:01:37]}  fxe5 {[%clk 0:01:44]} 23. Nxe5 {[%clk 0:01:38]}  Qh5 {[%clk 0:01:10]} 24. Nf6+ {[%clk 0:01:37]} 1-0


[Site "https://www.chess.com"]

[Event "Titled Tuesday Blitz October 11 Late 2022"]
[White "Leiva, Gianmarco"]
[Black "Donchenko, Alexander"]
[WhiteFideId "3804399"]
[BlackFideId "24603295"]
[WhiteElo "2285"]
[BlackElo "2572"]
[Result "0-1"]
[Round "06"]
[TimeControl "180+1"]
[Date "2022.10.11"]
[WhiteClock "0:00:19"]
[BlackClock "0:01:16"]

1. e4 {[%clk 0:03:00]}  c6 {[%clk 0:02:58]} 2. d4 {[%clk 0:02:59]}  d5 {[%clk 0:02:59]} 3. e5 {[%clk 0:02:59]}  Bf5 {[%clk 0:02:59]} 4. Nf3 {[%clk 0:02:59]}  e6 {[%clk 0:02:59]} 5. Be2 {[%clk 0:02:59]}  Nd7 {[%clk 0:02:59]} 6. O-O {[%clk 0:02:58]}  h6 {[%clk 0:03:00]} 7. a4 {[%clk 0:02:58]}  Ne7 {[%clk 0:03:00]} 8. a5 {[%clk 0:02:58]}  a6 {[%clk 0:03:00]} 9. b4 {[%clk 0:02:57]}  Bh7 {[%clk 0:02:58]} 10. Bd3 {[%clk 0:02:57]}  Bxd3 {[%clk 0:02:57]} 11. Qxd3 {[%clk 0:02:57]}  Nf5 {[%clk 0:02:58]} 12. c3 {[%clk 0:02:54]}  Qc7 {[%clk 0:02:54]} 13. Re1 {[%clk 0:02:52]}  g5 {[%clk 0:02:52]} 14. Na3 {[%clk 0:02:35]}  g4 {[%clk 0:02:49]} 15. Nd2 {[%clk 0:02:34]}  h5 {[%clk 0:02:49]} 16. Nc2 {[%clk 0:02:34]}  Bh6 {[%clk 0:02:44]} 17. Ne3 {[%clk 0:02:29]}  Bxe3 {[%clk 0:02:41]} 18. fxe3 {[%clk 0:02:29]}  h4 {[%clk 0:02:37]} 19. e4 {[%clk 0:02:29]}  dxe4 {[%clk 0:02:37]} 20. Nxe4 {[%clk 0:02:29]}  O-O-O {[%clk 0:02:37]} 21. Bg5 {[%clk 0:02:28]}  Nxe5 {[%clk 0:02:35]} 22. Qe2 {[%clk 0:01:59]}  Ng6 {[%clk 0:02:10]} 23. Qxg4 {[%clk 0:01:58]}  Rdg8 {[%clk 0:02:06]} 24. Qf3 {[%clk 0:01:56]}  h3 {[%clk 0:02:01]} 25. g3 {[%clk 0:01:43]}  Nge7 {[%clk 0:01:56]} 26. Bf4 {[%clk 0:01:27]}  Qd8 {[%clk 0:01:57]} 27. Be5 {[%clk 0:01:21]}  Rh6 {[%clk 0:01:53]} 28. Rf1 {[%clk 0:01:11]}  Ng6 {[%clk 0:01:51]} 29. Rad1 {[%clk 0:01:05]}  Qd5 {[%clk 0:01:42]} 30. Bf4 {[%clk 0:00:54]}  Nxf4 {[%clk 0:01:40]} 31. Qxf4 {[%clk 0:00:51]}  Rh4 {[%clk 0:01:40]} 32. Rde1 {[%clk 0:00:20]}  Rxf4 {[%clk 0:01:38]} 33. Rxf4 {[%clk 0:00:21]}  Kb8 {[%clk 0:01:31]} 34. Rf2 {[%clk 0:00:17]}  Rg6 {[%clk 0:01:26]} 35. Nd2 {[%clk 0:00:14]}  Nxg3 {[%clk 0:01:20]} 36. hxg3 {[%clk 0:00:14]}  Rxg3+ {[%clk 0:01:21]} 37. Kf1 {[%clk 0:00:15]}  Qh1+ {[%clk 0:01:18]} 38. Ke2 {[%clk 0:00:15]}  Re3+ {[%clk 0:01:19]} 39. Kxe3 {[%clk 0:00:16]}  Qxe1+ {[%clk 0:01:19]} 40. Re2 {[%clk 0:00:16]}  Qxe2+ {[%clk 0:01:19]} 41. Kxe2 {[%clk 0:00:17]}  h2 {[%clk 0:01:20]} 42. Ne4 {[%clk 0:00:17]}  h1=Q {[%clk 0:01:21]} 43. Nc5 {[%clk 0:00:17]}  Qh3 {[%clk 0:01:19]} 44. Kd2 {[%clk 0:00:17]}  Ka8 {[%clk 0:01:16]} 45. Nd7 {[%clk 0:00:17]}  f5 {[%clk 0:01:16]} 46. Nb6+ {[%clk 0:00:17]}  Ka7 {[%clk 0:01:17]} 47. Nc8+ {[%clk 0:00:17]}  Kb8 {[%clk 0:01:17]} 48. Nb6 {[%clk 0:00:18]}  f4 {[%clk 0:01:17]} 49. Nd7+ {[%clk 0:00:18]}  Ka7 {[%clk 0:01:18]} 50. Ne5 {[%clk 0:00:19]}  Qe3+ {[%clk 0:01:16]} 0-1


[Site "https://www.chess.com"]

[Event "Titled Tuesday Blitz October 11 Late 2022"]
[White "Mamedov, Rauf"]
[Black "Sanal, Vahap"]
[WhiteFideId "13401653"]
[BlackFideId "6300545"]
[WhiteElo "2650"]
[BlackElo "2574"]
[Result "1-0"]
[Round "06"]
[TimeControl "180+1"]
[Date "2022.10.11"]
[WhiteClock "0:01:41"]
[BlackClock "0:00:02"]

1. e4 {[%clk 0:02:59]}  d6 {[%clk 0:03:00]} 2. d4 {[%clk 0:02:59]}  Nf6 {[%clk 0:03:00]} 3. Nc3 {[%clk 0:02:59]}  e5 {[%clk 0:02:59]} 4. Nf3 {[%clk 0:02:59]}  Nbd7 {[%clk 0:02:59]} 5. h3 {[%clk 0:02:57]}  Be7 {[%clk 0:02:52]} 6. g4 {[%clk 0:02:57]}  O-O {[%clk 0:02:51]} 7. Rg1 {[%clk 0:02:53]}  c6 {[%clk 0:02:51]} 8. h4 {[%clk 0:02:53]}  b5 {[%clk 0:02:47]} 9. a3 {[%clk 0:02:53]}  a5 {[%clk 0:02:46]} 10. h5 {[%clk 0:02:54]}  Bb7 {[%clk 0:02:27]} 11. g5 {[%clk 0:02:53]}  Nxh5 {[%clk 0:02:22]} 12. Nxe5 {[%clk 0:02:43]}  dxe5 {[%clk 0:02:11]} 13. Qxh5 {[%clk 0:02:43]}  Re8 {[%clk 0:01:43]} 14. Rh1 {[%clk 0:02:37]}  Nf8 {[%clk 0:01:43]} 15. dxe5 {[%clk 0:02:38]}  b4 {[%clk 0:01:36]} 16. Bc4 {[%clk 0:02:37]}  g6 {[%clk 0:01:29]} 17. Qf3 {[%clk 0:02:37]}  Ne6 {[%clk 0:01:17]} 18. Bxe6 {[%clk 0:02:34]}  fxe6 {[%clk 0:01:17]} 19. Qh3 {[%clk 0:02:34]}  h5 {[%clk 0:01:18]} 20. Qxe6+ {[%clk 0:02:33]}  Kg7 {[%clk 0:01:16]} 21. axb4 {[%clk 0:02:03]}  axb4 {[%clk 0:00:51]} 22. Rxa8 {[%clk 0:02:01]}  Bxa8 {[%clk 0:00:52]} 23. Ne2 {[%clk 0:02:01]}  c5 {[%clk 0:00:36]} 24. Nf4 {[%clk 0:01:40]}  Bxe4 {[%clk 0:00:24]} 25. Nxh5+ {[%clk 0:01:41]}  gxh5 {[%clk 0:00:25]} 26. Qh6+ {[%clk 0:01:41]}  Kg8 {[%clk 0:00:26]} 27. g6 {[%clk 0:01:41]}  Qd5 {[%clk 0:00:02]} 28. Qh7+ {[%clk 0:01:41]}  Kf8 {[%clk 0:00:02]} 29. Bh6# {[%clk 0:01:41]} 1-0


[Site "https://www.chess.com"]

[Event "Titled Tuesday Blitz October 11 Late 2022"]
[White "Martin Carmona, Gaston Manuel"]
[Black "Zhukov, Maksim"]
[WhiteFideId "22284567"]
[BlackFideId "34181790"]
[WhiteElo "2235"]
[BlackElo "1929"]
[Result "0-1"]
[Round "06"]
[TimeControl "180+1"]
[Date "2022.10.12"]
[WhiteClock "0:00:08"]
[BlackClock "0:01:22"]

1. d4 {[%clk 0:02:52]}  Nf6 {[%clk 0:02:55]} 2. c4 {[%clk 0:02:52]}  g6 {[%clk 0:02:56]} 3. Nc3 {[%clk 0:02:53]}  Bg7 {[%clk 0:02:57]} 4. Nf3 {[%clk 0:02:52]}  O-O {[%clk 0:02:58]} 5. g3 {[%clk 0:02:53]}  d6 {[%clk 0:02:58]} 6. Bg2 {[%clk 0:02:54]}  Nc6 {[%clk 0:02:59]} 7. O-O {[%clk 0:02:53]}  e5 {[%clk 0:03:00]} 8. d5 {[%clk 0:02:53]}  Nb8 {[%clk 0:03:00]} 9. e4 {[%clk 0:02:53]}  a5 {[%clk 0:03:01]} 10. Ne1 {[%clk 0:02:53]}  Na6 {[%clk 0:03:02]} 11. Nd3 {[%clk 0:02:53]}  Nd7 {[%clk 0:03:03]} 12. f4 {[%clk 0:02:50]}  exf4 {[%clk 0:03:03]} 13. Bxf4 {[%clk 0:02:47]}  Nac5 {[%clk 0:03:02]} 14. Nxc5 {[%clk 0:02:46]}  Nxc5 {[%clk 0:03:03]} 15. Qd2 {[%clk 0:02:46]}  Nd7 {[%clk 0:02:58]} 16. Rae1 {[%clk 0:02:46]}  Ne5 {[%clk 0:02:58]} 17. Bh6 {[%clk 0:02:45]}  Bg4 {[%clk 0:02:55]} 18. b3 {[%clk 0:02:40]}  Qd7 {[%clk 0:02:55]} 19. Bxg7 {[%clk 0:02:36]}  Kxg7 {[%clk 0:02:55]} 20. Qg5 {[%clk 0:02:35]}  h6 {[%clk 0:02:55]} 21. Qf6+ {[%clk 0:02:35]}  Kg8 {[%clk 0:02:54]} 22. Nb5 {[%clk 0:02:28]}  a4 {[%clk 0:02:46]} 23. Nd4 {[%clk 0:01:34]}  axb3 {[%clk 0:02:44]} 24. axb3 {[%clk 0:01:35]}  Ra2 {[%clk 0:02:42]} 25. Ra1 {[%clk 0:01:28]}  Rfa8 {[%clk 0:02:41]} 26. Rxa2 {[%clk 0:01:28]}  Rxa2 {[%clk 0:02:42]} 27. Rf4 {[%clk 0:00:45]}  Rd2 {[%clk 0:02:34]} 28. Nb5 {[%clk 0:00:37]}  h5 {[%clk 0:02:20]} 29. Bf1 {[%clk 0:00:35]}  Rb2 {[%clk 0:02:01]} 30. Nd4 {[%clk 0:00:33]}  c5 {[%clk 0:01:57]} 31. dxc6 {[%clk 0:00:32]}  bxc6 {[%clk 0:01:58]} 32. Bg2 {[%clk 0:00:27]}  Rd2 {[%clk 0:01:55]} 33. Nf3 {[%clk 0:00:26]}  Bxf3 {[%clk 0:01:50]} 34. Bxf3 {[%clk 0:00:25]}  Qa7+ {[%clk 0:01:50]} 35. Kh1 {[%clk 0:00:22]}  Qa1+ {[%clk 0:01:44]} 36. Bd1 {[%clk 0:00:18]}  Rxd1+ {[%clk 0:01:38]} 37. Kg2 {[%clk 0:00:18]}  Qb2+ {[%clk 0:01:37]} 38. Kh3 {[%clk 0:00:17]}  Rd2 {[%clk 0:01:37]} 39. Qd8+ {[%clk 0:00:16]}  Kh7 {[%clk 0:01:37]} 40. Kh4 {[%clk 0:00:15]}  Rxh2+ {[%clk 0:01:26]} 41. Kg5 {[%clk 0:00:15]}  Nf3+ {[%clk 0:01:26]} 42. Rxf3 {[%clk 0:00:10]}  Qe5+ {[%clk 0:01:27]} 43. Rf5 {[%clk 0:00:09]}  Qxg3+ {[%clk 0:01:26]} 44. Kf6 {[%clk 0:00:09]}  Qh4+ {[%clk 0:01:23]} 45. Rg5 {[%clk 0:00:09]}  Rf2+ {[%clk 0:01:22]} 46. Ke7 {[%clk 0:00:08]}  Qxg5+ {[%clk 0:01:22]} 0-1


[Site "https://www.chess.com"]

[Event "Titled Tuesday Blitz October 11 Late 2022"]
[White "Matinian, Nikita"]
[Black "Trent, Lawrence"]
[WhiteFideId "24129100"]
[BlackFideId "408638"]
[WhiteElo "2699"]
[BlackElo "2537"]
[Result "1-0"]
[Round "06"]
[TimeControl "180+1"]
[Date "2022.10.12"]
[WhiteClock "0:01:28"]
[BlackClock "0:01:13"]

1. e4 {[%clk 0:03:00]}  c5 {[%clk 0:02:59]} 2. Nf3 {[%clk 0:03:01]}  d6 {[%clk 0:02:59]} 3. Bb5+ {[%clk 0:02:59]}  Nd7 {[%clk 0:02:59]} 4. d4 {[%clk 0:02:59]}  cxd4 {[%clk 0:02:59]} 5. Nxd4 {[%clk 0:02:59]}  Nf6 {[%clk 0:02:58]} 6. O-O {[%clk 0:02:59]}  a6 {[%clk 0:02:59]} 7. Bd3 {[%clk 0:02:55]}  g6 {[%clk 0:02:57]} 8. c4 {[%clk 0:02:49]}  Bg7 {[%clk 0:02:57]} 9. Nc3 {[%clk 0:02:50]}  O-O {[%clk 0:02:57]} 10. h3 {[%clk 0:02:42]}  b6 {[%clk 0:02:53]} 11. Nc6 {[%clk 0:02:40]}  Qe8 {[%clk 0:02:54]} 12. Nd5 {[%clk 0:02:39]}  Nxd5 {[%clk 0:02:53]} 13. exd5 {[%clk 0:02:39]}  Ne5 {[%clk 0:02:52]} 14. Nxe5 {[%clk 0:02:33]}  Bxe5 {[%clk 0:02:51]} 15. Bh6 {[%clk 0:02:33]}  Bg7 {[%clk 0:02:52]} 16. Bxg7 {[%clk 0:02:33]}  Kxg7 {[%clk 0:02:52]} 17. f4 {[%clk 0:02:31]}  Ra7 {[%clk 0:02:49]} 18. f5 {[%clk 0:02:31]}  Qd8 {[%clk 0:02:43]} 19. Qd2 {[%clk 0:02:28]}  b5 {[%clk 0:02:38]} 20. cxb5 {[%clk 0:02:28]}  axb5 {[%clk 0:02:38]} 21. Rae1 {[%clk 0:02:28]}  Kg8 {[%clk 0:02:16]} 22. a3 {[%clk 0:02:25]}  Qb6+ {[%clk 0:02:15]} 23. Kh1 {[%clk 0:02:24]}  Qd4 {[%clk 0:02:11]} 24. fxg6 {[%clk 0:02:19]}  hxg6 {[%clk 0:02:10]} 25. Rf4 {[%clk 0:02:02]}  Qg7 {[%clk 0:01:56]} 26. Bxb5 {[%clk 0:01:59]}  e5 {[%clk 0:01:41]} 27. dxe6 {[%clk 0:01:56]}  Bxe6 {[%clk 0:01:42]} 28. a4 {[%clk 0:01:47]}  Rc8 {[%clk 0:01:41]} 29. Qxd6 {[%clk 0:01:39]}  Qxb2 {[%clk 0:01:34]} 30. Rxe6 {[%clk 0:01:32]}  Rc1+ {[%clk 0:01:15]} 31. Kh2 {[%clk 0:01:30]}  fxe6 {[%clk 0:01:13]} 32. Qf8+ {[%clk 0:01:28]}  Kh7 {[%clk 0:01:13]} 33. Rh4# {[%clk 0:01:28]} 1-0


[Site "https://www.chess.com"]

[Event "Titled Tuesday Blitz October 11 Late 2022"]
[White "Mekhane, Adam"]
[Black "Tayar, Jonathan"]
[WhiteFideId "36050601"]
[BlackFideId "2606534"]
[WhiteElo "2478"]
[BlackElo "2647"]
[Result "1/2-1/2"]
[Round "06"]
[TimeControl "180+1"]
[Date "2022.10.12"]
[WhiteClock "0:00:34"]
[BlackClock "0:00:20"]

1. e4 {[%clk 0:03:00]}  c5 {[%clk 0:02:57]} 2. Nf3 {[%clk 0:03:00]}  d6 {[%clk 0:02:54]} 3. Bb5+ {[%clk 0:02:59]}  Bd7 {[%clk 0:02:54]} 4. Bxd7+ {[%clk 0:02:59]}  Qxd7 {[%clk 0:02:55]} 5. O-O {[%clk 0:02:58]}  Nc6 {[%clk 0:02:55]} 6. c3 {[%clk 0:02:55]}  Nf6 {[%clk 0:02:55]} 7. Qe2 {[%clk 0:02:55]}  e6 {[%clk 0:02:54]} 8. d4 {[%clk 0:02:55]}  cxd4 {[%clk 0:02:54]} 9. cxd4 {[%clk 0:02:55]}  d5 {[%clk 0:02:55]} 10. e5 {[%clk 0:02:53]}  Ne4 {[%clk 0:02:54]} 11. Nbd2 {[%clk 0:02:53]}  Nxd2 {[%clk 0:02:50]} 12. Bxd2 {[%clk 0:02:53]}  Bb4 {[%clk 0:02:49]} 13. Bf4 {[%clk 0:02:53]}  O-O {[%clk 0:02:43]} 14. h4 {[%clk 0:02:54]}  Rfc8 {[%clk 0:02:40]} 15. h5 {[%clk 0:02:52]}  h6 {[%clk 0:02:39]} 16. g4 {[%clk 0:02:44]}  Be7 {[%clk 0:02:35]} 17. Kh2 {[%clk 0:02:25]}  Rf8 {[%clk 0:02:25]} 18. Rae1 {[%clk 0:02:15]}  f6 {[%clk 0:01:57]} 19. exf6 {[%clk 0:01:58]}  Rxf6 {[%clk 0:01:58]} 20. Bg3 {[%clk 0:01:38]}  Raf8 {[%clk 0:01:43]} 21. Ne5 {[%clk 0:01:37]}  Nxe5 {[%clk 0:01:42]} 22. Bxe5 {[%clk 0:01:37]}  Bd6 {[%clk 0:01:35]} 23. f4 {[%clk 0:01:29]}  Bxe5 {[%clk 0:01:34]} 24. fxe5 {[%clk 0:01:29]}  Rxf1 {[%clk 0:01:30]} 25. Rxf1 {[%clk 0:01:28]}  Rxf1 {[%clk 0:01:27]} 26. Qxf1 {[%clk 0:01:28]}  Qa4 {[%clk 0:01:27]} 27. Qc1 {[%clk 0:01:02]}  Qxd4 {[%clk 0:01:22]} 28. Qc8+ {[%clk 0:01:02]}  Kh7 {[%clk 0:01:20]} 29. Qxe6 {[%clk 0:01:01]}  Qf2+ {[%clk 0:01:18]} 30. Kh3 {[%clk 0:00:59]}  Qf3+ {[%clk 0:01:17]} 31. Kh2 {[%clk 0:00:59]}  Qf4+ {[%clk 0:01:14]} 32. Kh3 {[%clk 0:00:58]}  Qe3+ {[%clk 0:01:13]} 33. Kh2 {[%clk 0:00:57]}  Qe2+ {[%clk 0:01:11]} 34. Kh3 {[%clk 0:00:57]}  Qd3+ {[%clk 0:01:11]} 35. Kh2 {[%clk 0:00:57]}  Qc2+ {[%clk 0:01:03]} 36. Kh3 {[%clk 0:00:56]}  Qd3+ {[%clk 0:01:01]} 37. Kh2 {[%clk 0:00:56]}  Qe2+ {[%clk 0:00:59]} 38. Kh3 {[%clk 0:00:55]}  Qf1+ {[%clk 0:00:59]} 39. Kh2 {[%clk 0:00:54]}  Qf2+ {[%clk 0:00:36]} 40. Kh3 {[%clk 0:00:54]}  Qf3+ {[%clk 0:00:30]} 41. Kh2 {[%clk 0:00:53]}  Qf4+ {[%clk 0:00:28]} 42. Kg2 {[%clk 0:00:49]}  Qe4+ {[%clk 0:00:27]} 43. Kf2 {[%clk 0:00:47]}  Qf4+ {[%clk 0:00:26]} 44. Kg2 {[%clk 0:00:47]}  Qe4+ {[%clk 0:00:26]} 45. Kh3 {[%clk 0:00:38]}  Qe3+ {[%clk 0:00:22]} 46. Kg2 {[%clk 0:00:35]}  Qe2+ {[%clk 0:00:21]} 47. Kg3 {[%clk 0:00:34]}  Qe3+ {[%clk 0:00:20]} 48. Kg2 {[%clk 0:00:34]}  Qe4+ {[%clk 0:00:20]} 1/2-1/2


[Site "https://www.chess.com"]